fUSD/lending_fUSD_20260323
["ID","MTS","AMOUNT","RATE_DAILY","PERIOD"]
[408813335,1774288244603,-523.04,0.00015999,2]
[408813336,1774288244612,-523.04,0.00015999,2]
[408813337,1774288244622,-500.0,0.00015999,2]
[408813338,1774288244632,-500.0,0.00015999,2]
[408813339,1774288244642,-500.0,0.00015999,2]
[408813340,1774288244652,-500.0,0.00015999,2]
[408813341,1774288244661,-500.0,0.00015999,2]
[408813342,1774288244670,-536.59,0.00015999,2]
[408813343,1774288244681,-536.59,0.00015999,2]
[408813344,1774288244691,-500.0,0.00015999,2]
[408813345,1774288244700,-500.0,0.00015999,2]
[408813346,1774288244710,-500.0,0.00015999,2]
[408813347,1774288244719,-500.0,0.00015999,2]
[408813348,1774288244729,-500.0,0.00015999,2]
[408813349,1774288244739,-500.0,0.00015999,2]
[408813350,1774288244749,-500.0,0.00015999,2]
[408813351,1774288244758,-500.0,0.00015999,2]
[408813352,1774288244768,-483.91768937,0.00015999,2]
[408813353,1774288244777,-500.0,0.00015999,2]
[408813354,1774288244787,-500.0,0.00015999,2]
[408813355,1774288244796,-500.0,0.00015999,2]
[408813356,1774288244805,-500.0,0.00015999,2]
[408813357,1774288244814,-500.0,0.00015999,2]
[408813358,1774288244823,-500.0,0.00015999,2]
[408813359,1774288244833,-338.79435443,0.00015999,2]
[408813360,1774288244842,-500.0,0.00015999,2]
[408813361,1774288244851,-500.0,0.00015999,2]
[408813362,1774288244860,-500.0,0.00015999,2]
[408813363,1774288245200,-500.0,0.00015999,2]
[408813364,1774288245210,-500.0,0.00015999,2]
[408813365,1774288245219,-500.0,0.00015999,2]
[408813366,1774288245229,-500.0,0.00015999,2]
[408813367,1774288245238,-500.0,0.00015999,2]
[408813368,1774288245248,-500.0,0.00015999,2]
[408813369,1774288245258,-500.0,0.00015999,2]
[408813370,1774288245267,-161.206,0.00015999,2]
[408813371,1774288245276,-500.0,0.00015999,2]
[408813372,1774288245285,-500.0,0.00015999,2]
[408813373,1774288245294,-500.0,0.00015999,2]
[408813374,1774288245303,-500.0,0.00015999,2]
[408813375,1774288245313,-500.0,0.00015999,2]
[408813376,1774288245322,-4052.08,0.00015999,2]
[408813377,1774288245331,-4052.08,0.00015999,2]
[408813378,1774288245341,-4052.08,0.00015999,2]
[408813379,1774288245350,-862.94,0.00015999,2]
[408813380,1774288245359,-862.94,0.00015999,2]
[408813381,1774288245368,-862.94,0.00015999,2]
[408813382,1774288245377,-862.94,0.00015999,2]
[408813383,1774288245387,-862.94,0.00015999,2]
[408813384,1774288245396,-500.0,0.00015999,2]
[408813385,1774288245405,-500.0,0.00015999,2]
[408813386,1774288245415,-500.0,0.00015999,2]
[408813387,1774288245424,-500.0,0.00015999,2]
[408813388,1774288245433,-500.0,0.00015999,2]
[408813389,1774288245443,-500.0,0.00015999,2]
[408813390,1774288245453,-500.0,0.00015999,2]
[408813391,1774288245463,-500.0,0.00015999,2]
[408813392,1774288245472,-500.0,0.00015999,2]
[408813393,1774288245481,-500.0,0.00015999,2]
[408813394,1774288245491,-1103.88,0.00015999,2]
[408813395,1774288245500,-1103.88,0.00015999,2]
[408813396,1774288245511,-1103.88,0.00015999,2]
[408813397,1774288245521,-500.0,0.00015999,2]
[408813398,1774288245532,-268.71,0.00015999,2]
[408813399,1774288245541,-2500.0,0.00015999,2]
[408813400,1774288245554,-2500.0,0.00015999,2]
[408813401,1774288245564,-2500.0,0.00015999,2]
[408813402,1774288245575,-585460.05530438,0.00016,2]
[408813403,1774288245584,-151.0,0.00016,2]
[408813404,1774288245595,-151.14910425,0.00016,2]
[408813405,1774288245604,-492.19,0.00016,2]
[408813406,1774288245614,-4999.99,0.00016116,2]
[408813407,1774288245629,-2305.43,0.00016116,2]
[408813408,1774288245639,-437.76,0.00016116,2]
[408813409,1774288245650,-150.99,0.00016116,2]
[408813410,1774288245660,-9999.99,0.00016116,2]
[408813411,1774288245670,-999.99,0.00016116,2]
[408813412,1774288245680,-14807.5,0.00016116,2]
[408813413,1774288245690,-7164.41,0.00016116,2]
[408813414,1774288245700,-9999.99,0.00016116,2]
[408813415,1774288245710,-150.99,0.00016116,2]
[408813416,1774288245719,-523.04,0.00016199,2]
[408813417,1774288245729,-536.59,0.00016199,2]
[408813418,1774288245738,-168.0,0.0001624,2]
[408813419,1774288245748,-12688.82858581,0.00016245,2]
[408813420,1774288245758,-3065.61,0.00016438,2]
[408813421,1774288245769,-151.0,0.00016438,2]
[408813423,1774288245779,-151.0,0.00016438,2]
[408813425,1774288245789,-151.0,0.00016438,2]
[408813426,1774288245799,-168.0,0.00016491,2]
[408813428,1774288245809,-168.0,0.00016508,2]
[408813430,1774288245818,-1065.67619672,0.00016521,2]
[408813433,1774288245828,-168.0,0.00016535,2]
[408813435,1774288245838,-502.0,0.00016538,4]
[408813437,1774288245848,-168.0,0.00016544,2]
[408813439,1774288245857,-166.66,0.00016633,2]
[408813441,1774288245866,-168.0,0.00016756,2]
[408813443,1774288245876,-49284.66074,0.0001676,2]
[408813445,1774288245885,-168.0,0.00016805,2]
[408813447,1774288245895,-3883.25412275,0.00016816,2]
[408813449,1774288245904,-400.0,0.0001687,2]
[408813451,1774288245914,-700.0,0.0001687,2]
[408813453,1774288245925,-1103.88,0.00016921,2]
[408813455,1774288245934,-166.66,0.00016983,2]
[408813457,1774288245943,-350.0,0.00017,2]
[408813459,1774288245953,-8106.9942637,0.00017101,2]
[408813461,1774288245962,-168.0,0.00017155,2]
[408813463,1774288245972,-168.0,0.00017285,2]
[408813466,1774288245982,-166.66,0.00017333,2]
[408813468,1774288245996,-12688.82858581,0.0001736,2]
[408813470,1774288246007,-168.0,0.00017365,2]
[408813471,1774288246016,-168.0,0.00017412,2]
[408813472,1774288246026,-168.0,0.00017431,2]
[408813473,1774288246035,-168.0,0.00017464,2]
[408813474,1774288246045,-1808.9149283,0.0001753,2]
[408813475,1774288246055,-168.0,0.00017619,2]
[408813476,1774288246065,-168.0,0.00017664,2]
[408813477,1774288246075,-166.66,0.00017683,2]
[408813478,1774288246084,-4052.08,0.00017871,2]
[408813479,1774288246094,-1103.88,0.00017871,2]
[408813480,1774288246104,-1103.88,0.00017871,2]
[408813481,1774288246113,-1103.88,0.00017871,2]
[408813482,1774288246124,-1103.88,0.00017871,2]
[408813483,1774288246134,-1104.01372636,0.00017871,2]
[408813484,1774288246144,-2500.0,0.00017871,2]
[408813485,1774288246154,-27958.7359346,0.00017872,2]
[408813486,1774288246164,-170623.184768,0.00017872,2]
[408813487,1774288246178,-537.0,0.0001792,2]
[408813488,1774288246187,-689.0,0.0001792,2]
[408813489,1774288246197,-959.360647,0.00018032,7]
[408813490,1774288246207,-166.66,0.00018034,2]
[408813491,1774288246217,-157.49,0.000181,2]
[408813492,1774288246227,-473.86,0.000181,2]
[408813493,1774288246237,-367.89443197,0.00018145,2]
[408813494,1774288246248,-6238.4372266,0.0001832,2]
[408813495,1774288246258,-38071.1785423,0.0001832,2]
[408813496,1774288246269,-166.66,0.00018384,2]
[408813497,1774288246279,-492.19,0.000184,2]
[408813498,1774288246289,-12688.82858581,0.00018474,2]
[408813499,1774288246299,-150.94,0.0001883,2]
[408813500,1774288246309,-4052.08,0.00018935,2]
[408813501,1774288246319,-2500.0,0.00018935,2]
[408813502,1774288246330,-151.0,0.00019,2]
[408813503,1774288246340,-3372.06488338,0.00019045,2]
[408813504,1774288246350,-502.0,0.00019077,6]
[408813505,1774288246361,-150.0,0.00019178,2]
[408813506,1774288246371,-3000.0,0.00019178,2]
[408813507,1774288246385,-150.0,0.00019178,2]
[408813508,1774288246395,-150.0,0.00019178,2]
[408813509,1774288246406,-151.0,0.00019554,2]
[408813510,1774288246415,-151.0,0.00019554,2]
[408813511,1774288246426,-2311.36,0.00019573,2]
[408813512,1774288246437,-1044.0,0.00019573,2]
[408813513,1774288246446,-150.0,0.00019573,2]
[408813514,1774288246456,-416.351,0.00019573,2]
[408813515,1774288246466,-6008.0,0.00019573,2]
[408813516,1774288246477,-3761.0,0.00019573,2]
[408813517,1774288246487,-2466.0,0.00019573,2]
[408813518,1774288246497,-12688.82858581,0.00019589,2]
[408813519,1774288246507,-151.0,0.00019589,2]
[408813520,1774288246517,-151.0,0.00019589,2]
[408813521,1774288246528,-151.0,0.00019589,2]
[408813522,1774288246537,-226.619592,0.00019589,2]
[408813523,1774288246548,-226.619592,0.00019589,2]
[408813524,1774288246562,-226.619592,0.00019589,2]
[408813525,1774288246574,-226.619592,0.00019589,2]
[408813526,1774288246584,-222.586712,0.00019589,2]
[408813527,1774288246594,-222.586712,0.00019589,2]
[408813528,1774288246604,-222.586712,0.00019589,2]
[408813529,1774288246613,-222.586712,0.00019589,2]
[408813530,1774288246624,-151.0,0.00019589,2]
[408813531,1774288246634,-250.0,0.00019726,2]
[408813532,1774288246643,-200.0,0.0002,10]
[408813533,1774288246653,-346.41,0.00020024,2]
[408813534,1774288246663,-300.0,0.000201,10]
[408813535,1774288246673,-350.0,0.00020274,2]
[408813536,1774288246683,-415.68,0.00020536,2]
[408813537,1774288246694,-12688.82858581,0.00020703,2]
[408813538,1774288246703,-242.26,0.00020801,2]
[408813539,1774288246713,-898.59431419,0.00021002,2]
[408813540,1774288246723,-1084.0,0.00021089,5]
[408813541,1774288246733,-455.0,0.00021089,5]
[408813542,1774288246743,-661.0,0.00021089,5]
[408813543,1774288246754,-502.0,0.00021615,8]
[408813544,1774288246764,-3883.25412275,0.00021745,2]
[408813545,1774288246774,-442.0613732,0.00021808,2]
[408813546,1774288246785,-12688.82858581,0.00021818,2]
[408813547,1774288246796,-473.86,0.000219,2]
[408813548,1774288246807,-5000.0,0.00021918,2]
[408813549,1774288246817,-151.0,0.00021946,2]
[408813550,1774288246826,-151.0,0.00021946,2]
[408813551,1774288246836,-151.0,0.00021946,2]
[408813552,1774288246847,-151.0,0.00021946,2]
[408813553,1774288246856,-151.0,0.00021946,2]
[408813554,1774288246866,-500.274331,0.00021946,2]
[408813555,1774288246876,-500.274331,0.00021946,2]
[408813556,1774288246886,-500.274331,0.00021946,2]
[408813557,1774288246895,-500.274331,0.00021946,2]
[408813558,1774288246905,-211.516589,0.00021952,14]
[408813559,1774288246915,-2558.295059,0.00021952,14]
[408813560,1774288246924,-292.820707,0.00021952,14]
[408813561,1774288246935,-161.0,0.00022,30]
[408813562,1774288246944,-154.0,0.00022,2]
[408813563,1774288246964,-500.0,0.00022,2]
[408813564,1774288246975,-154.97902323,0.00022021,2]
[408813565,1774288246986,-268.45,0.00022142,2]
[408813566,1774288246997,-150.94,0.00022255,2]
[408813567,1774288247006,-1044.0,0.00022573,2]
[408813568,1774288247018,-2466.0,0.00022573,2]
[408813569,1774288247030,-492.19,0.000226,7]
[408813570,1774288247040,-154.0,0.00023,2]
[408813571,1774288247050,-268.45,0.00023182,2]
[408813572,1774288247060,-2804.0,0.00023714,3]
[408813573,1774288247070,-154.0,0.00024,2]
[408813574,1774288247081,-502.0,0.00024154,10]
[408813575,1774288247091,-378.668612,0.00024402,14]
[408813576,1774288247101,-157.49,0.000246,7]
[408813577,1774288247112,-346.41,0.00024643,2]
[408813578,1774288247123,-150.0,0.00024658,2]
[408813579,1774288247133,-4052.08,0.00024899,2]
[408813580,1774288247143,-4052.08,0.00024899,2]
[408813581,1774288247153,-4052.08,0.00024899,2]
[408813582,1774288247165,-4052.08,0.00024899,2]
[408813583,1774288247175,-4052.16,0.00024899,2]
[408813584,1774288247187,-185.66095463,0.00024899,2]
[408813585,1774288247197,-2500.0,0.00024899,2]
[408813586,1774288247207,-2500.0,0.00024899,2]
[408813587,1774288247217,-2500.0,0.00024899,2]
[408813588,1774288247228,-2500.0,0.00024899,2]
[408813589,1774288247239,-161.49714506,0.00024899,2]
[408813590,1774288247250,-176.803564,0.000249,2]
[408813591,1774288247260,-176.803564,0.000249,2]
[408813592,1774288247270,-176.803564,0.000249,2]
[408813593,1774288247280,-176.803564,0.000249,2]
[408813594,1774288247290,-151.95091299,0.0002492,62]
[408813595,1774288247305,-4231.38,0.00024924,2]
[408813596,1774288247315,-164.0,0.00025,2]
[408813597,1774288247327,-155.56,0.00025178,2]
[408813598,1774288247337,-155.27440989,0.00025449,50]
[408813599,1774288247348,-503.864,0.00025573,2]
[408813600,1774288247358,-2466.0,0.00025573,2]
[408813601,1774288247369,-2000.0,0.000256,2]
[408813602,1774288247379,-242.26,0.0002565,2]
[408813603,1774288247390,-150.94,0.0002568,2]
[408813604,1774288247400,-1568.0,0.00025686,3]
[408813605,1774288247411,-150.0,0.0002589,2]
[408813606,1774288247421,-473.86,0.000259,7]
[408813607,1774288247432,-260.0,0.00026006,3]
[408813608,1774288247442,-378.4,0.00026633,2]
[408813609,1774288247452,-3883.25412275,0.00026674,2]
[408813610,1774288247463,-502.0,0.00026692,13]
[408813611,1774288247474,-151.0,0.00026849,2]
[408813612,1774288247484,-151.291443,0.00026849,2]
[408813613,1774288247496,-350.896048,0.00026849,14]
[408813614,1774288247507,-177.531099,0.00026849,14]
[408813615,1774288247518,-500.0,0.0002715,120]
[408813616,1774288247531,-150.0,0.00027185,2]
[408813617,1774288247544,-492.19,0.000272,7]
[408813618,1774288247559,-1050.0,0.00027397,7]
[408813619,1774288247571,-151.0,0.00027397,2]
[408813620,1774288247583,-151.0,0.00027397,2]
[408813621,1774288247595,-242.905252,0.00027397,2]
[408813622,1774288247606,-300.0,0.00027397,2]
[408813623,1774288247937,-16231.3,0.00027397,10]
[408813624,1774288247947,-23727.15,0.00027397,10]
[408813625,1774288247957,-151.1361,0.000274,2]
[408813626,1774288247970,-255.84,0.00027671,7]
[408813627,1774288247979,-353.87,0.00027888,2]
[408813628,1774288247988,-282.59510552,0.00028,60]
[408813629,1774288247997,-979.16666667,0.00028,10]
[408813630,1774288248007,-215.674426,0.00028028,14]
[408813631,1774288248016,-2558.295059,0.00028224,14]
[408813632,1774288248026,-195.213805,0.00028224,14]
[408813633,1774288248035,-404.66,0.00028439,120]
[408813634,1774288248044,-150.0,0.00028544,2]
[408813635,1774288248054,-2466.0,0.00028573,2]
[408813636,1774288248063,-1000.0,0.00028643,2]
[408813637,1774288248073,-404.66,0.00028713,120]
[408813638,1774288248083,-497.96947184,0.00028767,2]
[408813639,1774288248092,-404.66,0.00028987,120]
[408813640,1774288248102,-150.94,0.00029104,2]
[408813641,1774288248111,-562.31456985,0.00029139,2]
[408813642,1774288248121,-245.22375764,0.00029144,2]
[408813643,1774288248131,-157.49,0.000292,7]
[408813644,1774288248140,-502.0,0.00029231,15]
[408813645,1774288248149,-240.34095001,0.00029245,75]
[408813646,1774288248162,-500.0,0.0002925,120]
[408813647,1774288248171,-404.66,0.00029261,120]
[408813648,1774288248181,-1568.0,0.00029292,3]
[408813649,1774288248190,-301.38240305,0.00029294,2]
[408813650,1774288248199,-404.66,0.00029535,120]
[408813651,1774288248208,-153.96,0.00029809,2]
[408813652,1774288248217,-404.66,0.00029809,120]
[408813653,1774288248226,-473.86,0.000299,7]
[408813654,1774288248235,-1500.0,0.00029902,2]
[408813655,1774288248244,-1500.0,0.00029902,2]
[408813656,1774288248254,-1500.0,0.00029902,2]
[408813657,1774288248263,-1500.0,0.00029902,2]
[408813658,1774288248272,-1500.0,0.00029902,2]
[408813659,1774288248282,-1500.0,0.00029902,2]
[408813660,1774288248291,-1500.0,0.00029902,2]
[408813661,1774288248301,-1500.0,0.00029902,2]
[408813662,1774288248310,-1500.0,0.00029902,2]
[408813663,1774288248320,-1076.0,0.00029902,2]
[408813664,1774288248329,-150.0,0.00029971,2]
[408813665,1774288248338,-1000.0,0.0003,120]
[408813666,1774288248347,-1000.0,0.0003,120]
[408813667,1774288248357,-1000.0,0.0003,120]
[408813668,1774288248366,-404.66,0.00030083,120]
[408813669,1774288248376,-153.96,0.00030357,2]
[408813670,1774288248385,-404.66,0.00030357,120]
[408813671,1774288248395,-1650.0,0.00030441,2]
[408813672,1774288248404,-1650.0,0.00030441,2]
[408813673,1774288248414,-1650.0,0.00030441,2]
[408813674,1774288248423,-1650.0,0.00030441,2]
[408813675,1774288248433,-1650.0,0.00030441,2]
[408813676,1774288248442,-1650.0,0.00030441,2]
[408813677,1774288248451,-1650.0,0.00030441,2]
[408813678,1774288248461,-1650.0,0.00030441,2]
[408813679,1774288248470,-1650.0,0.00030441,2]
[408813680,1774288248479,-1441.0,0.00030441,2]
[408813681,1774288248489,-1750.0,0.00030441,2]
[408813682,1774288248498,-1750.0,0.00030441,2]
[408813683,1774288248507,-1750.0,0.00030441,2]
[408813684,1774288248517,-1750.0,0.00030441,2]
[408813685,1774288248526,-1750.0,0.00030441,2]
[408813686,1774288248535,-1750.0,0.00030441,2]
[408813687,1774288248544,-1750.0,0.00030441,2]
[408813688,1774288248556,-1750.0,0.00030441,2]
[408813689,1774288248565,-1750.0,0.00030441,2]
[408813690,1774288248574,-1332.0,0.00030441,2]
[408813691,1774288248583,-501.0,0.000305,16]
[408813692,1774288248595,-404.66,0.00030631,120]
[408813693,1774288248605,-492.19,0.000307,7]
[408813694,1774288248614,-161.0,0.00030748,3]
[408813695,1774288248623,-1362.83233868,0.00030749,2]
[408813696,1774288248635,-166.05,0.00030824,2]
[408813697,1774288248645,-153.96,0.00030905,2]
[408813698,1774288248655,-404.66,0.00030905,120]
[408813699,1774288248664,-1568.0,0.00031068,3]
[408813700,1774288248673,-165.21,0.000311,7]
[408813701,1774288248683,-161.51,0.00031128,2]
[408813702,1774288248692,-404.66,0.00031179,120]
[408813703,1774288248702,-1000.0,0.00031349,11]
[408813704,1774288248711,-1000.0,0.00031349,11]
[408813705,1774288248720,-1000.0,0.00031349,11]
[408813706,1774288248730,-1000.0,0.00031349,11]
[408813707,1774288248739,-1000.0,0.00031349,11]
[408813708,1774288248749,-1000.0,0.00031349,11]
[408813709,1774288248758,-1000.0,0.00031349,11]
[408813710,1774288248768,-1000.0,0.00031349,11]
[408813711,1774288248777,-500.0,0.0003135,120]
[408813712,1774288248786,-404.66,0.00031453,120]
[408813713,1774288248796,-150.0,0.0003147,2]
[408813714,1774288248805,-191.31,0.000315,24]
[408813715,1774288248815,-2466.0,0.00031573,2]
[408813716,1774288248825,-3883.25412275,0.00031603,2]
[408813717,1774288248834,-404.66,0.00031727,120]
[408813718,1774288248844,-161.51,0.00031756,2]
[408813719,1774288248853,-502.0,0.00031769,17]
[408813720,1774288248863,-161.0,0.00031904,3]
[408813721,1774288248872,-404.66,0.00032001,120]
[408813722,1774288248881,-404.66,0.00032275,120]
[408813723,1774288248891,-1200.0,0.00032384,2]
[408813724,1774288248900,-1200.0,0.00032384,2]
[408813725,1774288248909,-1200.0,0.00032384,2]
[408813726,1774288248918,-1200.0,0.00032384,2]
[408813727,1774288248928,-1200.0,0.00032384,2]
[408813728,1774288248938,-1200.0,0.00032384,2]
[408813729,1774288248947,-1200.0,0.00032384,2]
[408813730,1774288248957,-1200.0,0.00032384,2]
[408813731,1774288248967,-1200.0,0.00032384,2]
[408813732,1774288248977,-1165.0,0.00032384,2]
[408813733,1774288248987,-150.94,0.00032529,2]
[408813734,1774288248998,-1050.0,0.00032548,2]
[408813735,1774288249007,-1050.0,0.00032548,2]
[408813736,1774288249018,-1050.0,0.00032548,2]
[408813737,1774288249027,-1050.0,0.00032548,2]
[408813738,1774288249037,-1050.0,0.00032548,2]
[408813739,1774288249047,-1050.0,0.00032548,2]
[408813740,1774288249057,-1050.0,0.00032548,2]
[408813741,1774288249066,-1050.0,0.00032548,2]
[408813742,1774288249075,-1050.0,0.00032548,2]
[408813743,1774288249085,-815.0,0.00032548,2]
[408813744,1774288249094,-404.66,0.00032549,120]
[408813745,1774288249104,-404.66,0.00032823,120]
[408813746,1774288249113,-288.388298,0.00032877,7]
[408813747,1774288249123,-288.388298,0.00032877,7]
[408813748,1774288249132,-288.388298,0.00032877,7]
[408813749,1774288249142,-288.388298,0.00032877,7]
[408813750,1774288249151,-150.0,0.00032877,2]
[408813751,1774288249161,-150.0,0.00032877,2]
[408813752,1774288249170,-150.0,0.00032877,2]
[408813753,1774288249179,-150.0,0.00032877,2]
[408813754,1774288249189,-200.12318361,0.00032877,2]
[408813755,1774288249198,-979.16666667,0.00033,120]
[408813756,1774288249207,-150.0,0.00033043,2]
[408813757,1774288249217,-404.66,0.00033097,120]
[408813758,1774288249225,-150.0,0.00033099,30]
[408813759,1774288249235,-473.86,0.000331,30]
[408813760,1774288249244,-166.05,0.00033368,2]
[408813761,1774288249254,-404.66,0.00033371,120]
[408813762,1774288249264,-500.0,0.00033464,120]
[408813763,1774288249273,-404.66,0.00033645,120]
[408813764,1774288249283,-492.19,0.000337,30]
[408813765,1774288249292,-404.66,0.00033919,120]
[408813766,1774288249302,-404.66,0.00034193,120]
[408813767,1774288249312,-502.0,0.00034308,19]
[408813768,1774288249321,-404.66,0.00034467,120]
[408813769,1774288249330,-154.0,0.00034492,30]
[408813770,1774288249340,-155.0,0.00034492,30]
[408813771,1774288249350,-2466.0,0.00034573,2]
[408813772,1774288249360,-157.49,0.000346,30]
[408813773,1774288249369,-150.0,0.00034696,2]
[408813774,1774288249379,-404.66,0.00034741,120]
[408813775,1774288249389,-608.0,0.00034843,2]
[408813776,1774288249398,-404.66,0.00035015,120]
[408813777,1774288249408,-500.0,0.0003526,2]
[408813778,1774288249418,-404.66,0.00035289,120]
[408813779,1774288249427,-154.0,0.00035492,30]
[408813780,1774288249438,-155.0,0.00035492,30]
[408813781,1774288249448,-404.66,0.00035563,120]
[408813782,1774288249457,-404.66,0.00035837,120]
[408813783,1774288249466,-166.05,0.00035912,2]
[408813784,1774288249476,-150.94,0.00035954,2]
[408813785,1774288249485,-404.84,0.00036111,120]
[408813786,1774288249495,-2367.58,0.00036404,45]
[408813787,1774288249505,-150.0,0.0003643,2]
[408813788,1774288249514,-25000.0,0.00036474,10]
[408813789,1774288249524,-25000.0,0.00036483,10]
[408813790,1774288249534,-25000.0,0.00036492,10]
[408813791,1774288249543,-154.0,0.00036492,30]
[408813792,1774288249554,-155.0,0.00036492,30]
[408813793,1774288249564,-25000.0,0.00036501,10]
[408813794,1774288249573,-23038.0,0.00036501,10]
[408813795,1774288249582,-3883.25412275,0.00036532,2]
[408813796,1774288249592,-188.87222649,0.00036818,120]
[408813797,1774288249602,-156.67268821,0.00036818,120]
[408813798,1774288249612,-502.0,0.00036846,22]
[408813799,1774288249622,-492.19,0.00037,30]
[408813800,1774288249632,-979.16666667,0.00037,10]
[408813801,1774288249642,-7421.35,0.00037078,2]
[408813802,1774288249651,-154.0,0.00037492,30]
[408813803,1774288249661,-156.2510256,0.00037492,30]
[408813804,1774288249670,-250.0,0.00037564,7]
[408813805,1774288249680,-2466.0,0.00037573,2]
[408813806,1774288249689,-473.86,0.000376,30]
[408813807,1774288249698,-157.49,0.000378,30]
[408813808,1774288249707,-275.64664407,0.00037917,105]
[408813809,1774288249717,-152.26497632,0.00037939,105]
[408813810,1774288249726,-152.0,0.00038086,3]
[408813811,1774288249735,-150.0,0.00038252,2]
[408813812,1774288249745,-154.0,0.00038492,30]
[408813813,1774288249755,-500.0,0.000387,120]
[408813814,1774288249764,-500.0,0.000387,120]
[408813815,1774288249773,-500.0,0.000387,120]
[408813816,1774288249783,-500.0,0.000387,120]
[408813817,1774288249792,-500.0,0.000387,120]
[408813818,1774288249801,-500.0,0.000387,120]
[408813819,1774288249811,-500.0,0.000387,120]
[408813820,1774288249820,-500.0,0.000387,120]
[408813821,1774288249830,-500.0,0.000387,120]
[408813822,1774288249839,-500.0,0.000387,120]
[408813823,1774288249849,-500.0,0.000387,120]
[408813824,1774288249860,-500.0,0.000387,120]
[408813825,1774288249870,-500.0,0.000387,120]
[408813826,1774288249879,-500.0,0.000387,120]
[408813827,1774288249894,-500.0,0.000387,120]
[408813828,1774288249906,-500.0,0.000387,120]
[408813829,1774288249917,-500.0,0.000387,120]
[408813830,1774288249926,-500.0,0.000387,120]
[408813831,1774288249937,-500.0,0.000387,120]
[408813832,1774288249947,-500.0,0.000387,120]
[408813833,1774288249956,-151.0,0.0003872,14]
[408813834,1774288249966,-150.94,0.00039378,2]
[408813835,1774288249975,-502.0,0.00039385,24]
[408813836,1774288249985,-150.0,0.00039484,30]
[408813837,1774288249995,-154.0,0.00039492,30]
[408813838,1774288250004,-353.87,0.00039669,2]
[408813839,1774288250014,-500.0,0.00039857,53]
[408813840,1774288250024,-556.80166937,0.00039999,120]
[408813841,1774288250033,-500.0,0.00039999,10]
[408813842,1774288250043,-500.0,0.00039999,30]
[408813843,1774288250053,-385.93623428,0.00039999,120]
[408813844,1774288250063,-500.0,0.00039999,120]
[408813845,1774288250072,-500.0,0.00039999,120]
[408813846,1774288250081,-500.0,0.00039999,120]
[408813847,1774288250091,-500.0,0.00039999,30]
[408813848,1774288250100,-971.0,0.0004,7]
[408813849,1774288250110,-250.0,0.0004,7]
[408813850,1774288250119,-250.0,0.0004,7]
[408813851,1774288250129,-250.0,0.0004,7]
[408813852,1774288250138,-250.0,0.0004,7]
[408813853,1774288250148,-250.0,0.0004,7]
[408813854,1774288250157,-250.0,0.0004,7]
[408813855,1774288250167,-250.0,0.0004,7]
[408813856,1774288250176,-250.0,0.0004,7]
[408813857,1774288250188,-187.0,0.0004,7]
[408813858,1774288250198,-979.16666667,0.0004,7]
[408813859,1774288250208,-150.0,0.00040165,2]